bitfinex-derivatives/quotes_BTCF0:USTF0_20260111
["timestamp","ask_amount","ask_price","bid_price","bid_amount"]
[1768168390504,0.0338232,90877.0,90860.0,0.24398773]
[1768168390805,0.0228042,90877.0,90861.0,0.011021]
[1768168391002,0.011018,90882.0,90866.0,0.01102]
[1768168391192,0.011018,90882.0,90865.0,0.10518033]
[1768168391392,0.011019,90880.0,90865.0,0.19886033]
[1768168391900,0.011019,90877.0,90865.0,0.19886033]
[1768168392100,0.011019,90877.0,90866.0,0.09232269]
[1768168393002,0.011019,90875.0,90865.0,0.09368]
[1768168393598,0.011019,90875.0,90862.0,0.09865365]
[1768168393802,0.011019,90873.0,90863.0,0.09368]
[1768168394194,0.01102,90871.0,90855.0,0.09232269]
[1768168394501,0.01102,90871.0,90856.0,0.09368]
[1768168394899,0.01102,90871.0,90857.0,0.09232269]
[1768168398300,0.0228042,90874.0,90857.0,0.09232269]
[1768168398499,0.011019,90873.0,90857.0,0.09232269]
[1768168398900,0.011019,90873.0,90858.0,0.09368]
[1768168399198,0.011019,90873.0,90857.0,0.09232269]
[1768168399406,0.011019,90873.0,90858.0,0.09368]
[1768168399608,0.01102,90871.0,90858.0,0.09368]
[1768168400804,0.01102,90871.0,90858.0,0.18600269]
[1768168401810,0.01102,90870.0,90858.0,0.18600269]
[1768168402412,0.0228042,90884.0,90859.0,0.09232269]
[1768168402603,0.00241039,90888.0,90872.0,0.09232269]
[1768168403200,0.011018,90887.0,90872.0,0.09232269]
[1768168403800,0.0228042,90886.0,90872.0,0.09232269]
[1768168404001,0.011018,90887.0,90872.0,0.09232269]
[1768168404606,0.00241039,90888.0,90873.0,0.09232269]
[1768168404906,0.011017,90895.0,90873.0,0.09232269]
[1768168405107,0.0338212,90895.0,90873.0,0.09232269]
[1768168405297,0.0228042,90894.0,90873.0,0.09232269]
[1768168405906,0.0338212,90893.0,90873.0,0.09232269]
[1768168406105,0.0228042,90892.0,90873.0,0.09232269]
[1768168406311,0.0228042,90888.0,90873.0,0.09232269]
[1768168406703,0.0228042,90888.0,90874.0,0.09368]
[1768168407310,0.011017,90889.0,90874.0,0.09368]
[1768168407514,0.0228042,90892.0,90874.0,0.09368]
[1768168408013,0.011017,90891.0,90874.0,0.18600269]
[1768168408214,0.0228042,90890.0,90874.0,0.18600269]
[1768168408405,0.0228042,90890.0,90874.0,0.09232269]
[1768168408610,0.0228042,90890.0,90874.0,0.18600269]
[1768168408810,0.011017,90889.0,90874.0,0.18600269]
[1768168409716,0.011017,90889.0,90875.0,0.09232269]
[1768168410107,0.011017,90889.0,90875.0,0.08990132]
[1768168410914,0.0228042,90889.0,90875.0,0.08990132]
[1768168411313,0.0228042,90893.0,90875.0,0.08990132]
[1768168411514,0.011018,90885.0,90874.0,0.09368]
[1768168411714,0.011018,90885.0,90865.0,0.01102]
[1768168412010,0.011018,90885.0,90872.0,0.09364]
[1768168412915,0.011018,90885.0,90872.0,0.18596269]
[1768168414416,0.02013555,90885.0,90866.0,0.09749391]
[1768168414713,0.02013555,90885.0,90868.0,0.09749391]
[1768168415603,0.02013555,90885.0,90869.0,0.09364]
[1768168415808,0.02013555,90885.0,90869.0,0.19113391]
[1768168416311,0.02013555,90885.0,90870.0,0.09749391]
[1768168416819,0.011018,90885.0,90870.0,0.09749391]
[1768168417118,0.011018,90883.0,90870.0,0.09749391]
[1768168417320,0.011019,90875.0,90860.0,0.09749391]
[1768168417520,0.00911755,90878.0,90861.0,0.19113391]
[1768168417821,0.00911755,90878.0,90862.0,0.09749391]
[1768168419118,0.00911755,90878.0,90862.0,0.10851491]
[1768168419504,0.00906755,90878.0,90862.0,0.10851491]
[1768168419910,0.00901755,90878.0,90862.0,0.10851491]
[1768168420122,0.011019,90877.0,90862.0,0.09749391]
[1768168420320,0.00901755,90878.0,90862.0,0.19113391]
[1768168420529,0.02003655,90878.0,90862.0,0.19113391]
[1768168421231,0.02003655,90878.0,90863.0,0.09749391]
[1768168421524,0.09956204,90878.0,90854.0,0.09749391]
[1768168421706,0.01102,90870.0,90854.0,0.09749391]
[1768168421912,0.01102,90870.0,90854.0,0.10851591]
[1768168422517,0.01102,90870.0,90854.0,0.09749391]
[1768168422722,0.01097,90868.0,90854.0,0.09749391]
[1768168423024,0.00911755,90872.0,90854.0,0.09749391]
[1768168423226,0.01102,90867.0,90854.0,0.19113391]
[1768168423522,0.01102,90865.0,90854.0,0.09749391]
[1768168424814,0.011021,90859.0,90845.0,0.10299782]
[1768168425123,0.00911755,90864.0,90845.0,0.10299782]
[1768168425124,0.011021,90857.0,90845.0,0.10299782]
[1768168425722,0.011021,90857.0,90845.0,0.11550859]
[1768168427918,0.011022,90855.0,90845.0,0.11550859]
[1768168428921,0.00911755,90860.0,90842.0,0.09749391]
[1768168429627,0.00911755,90860.0,90821.0,0.05129589]
[1768168429628,0.00911755,90856.0,90822.0,0.011025]
[1768168429818,0.00911755,90856.0,90833.0,0.011024]
[1768168430926,0.011022,90848.0,90833.0,0.01241909]
[1768168431127,0.011022,90848.0,90833.0,0.09364]
[1768168431731,0.011023,90844.0,90833.0,0.01221114]
[1768168431927,0.011023,90844.0,90831.0,0.09749391]
[1768168432233,0.011023,90840.0,90831.0,0.09749391]
[1768168432425,0.011023,90840.0,90828.0,0.01489999]
[1768168432825,0.011024,90838.0,90828.0,0.01489999]
[1768168433438,0.011024,90838.0,90824.0,0.09364]
[1768168433625,0.011024,90838.0,90823.0,0.09364]
[1768168434434,0.011024,90838.0,90824.0,0.09749391]
[1768168434630,0.011023,90841.0,90824.0,0.09749391]
[1768168435435,0.011023,90839.0,90824.0,0.09749391]
[1768168436837,0.011023,90839.0,90824.0,0.10851891]
[1768168437038,0.011023,90842.0,90824.0,0.10851891]
[1768168437944,0.00911755,90844.0,90824.0,0.09749391]
[1768168438238,0.011024,90837.0,90824.0,0.09749391]
[1768168440447,0.011024,90835.0,90824.0,0.09749391]
[1768168441444,0.011024,90838.0,90824.0,0.09749391]
[1768168442037,0.09956204,90844.0,90826.0,0.011025]
[1768168442431,0.00911755,90846.0,90826.0,0.011025]
[1768168442630,0.00911755,90846.0,90826.0,0.10851891]
[1768168443542,0.011023,90841.0,90826.0,0.10851891]
[1768168444037,0.011023,90840.0,90826.0,0.10851891]
[1768168444841,0.011024,90838.0,90826.0,0.09749391]
[1768168445142,0.02014055,90846.0,90826.0,0.09749391]
[1768168446041,0.011024,90838.0,90826.0,0.09749391]
[1768168449534,0.00911755,90846.0,90826.0,0.09749391]
[1768168450644,0.00941076,90845.0,90826.0,0.09749391]
[1768168451638,0.011023,90841.0,90826.0,0.09749391]
[1768168453545,0.011023,90844.0,90826.0,0.09749391]
[1768168454550,0.011023,90844.0,90828.0,0.011025]
[1768168455849,0.011023,90844.0,90828.0,0.10920353]
[1768168457349,0.15155074,90840.0,90828.0,0.10920353]
[1768168462048,0.15155074,90840.0,90828.0,0.09817853]
[1768168463650,0.15155074,90840.0,90825.0,0.011025]
[1768168466858,0.011023,90839.0,90825.0,0.011025]
[1768168467759,0.011023,90839.0,90823.0,0.10920353]
[1768168469261,0.011023,90839.0,90825.0,0.011025]
[1768168472157,0.011023,90839.0,90823.0,0.10920353]
[1768168472363,0.011024,90837.0,90823.0,0.10920353]
[1768168473864,0.011023,90839.0,90823.0,0.10920353]
[1768168475867,0.011023,90839.0,90824.0,0.011025]
[1768168479771,0.011023,90841.0,90826.0,0.011025]
[1768168479972,0.15155074,90840.0,90826.0,0.011025]
[1768168480971,0.011023,90841.0,90826.0,0.011025]
[1768168481174,0.15155074,90840.0,90826.0,0.011025]
[1768168484378,0.011023,90841.0,90826.0,0.011025]
[1768168484579,0.15155074,90840.0,90826.0,0.011025]
[1768168486382,0.15155074,90840.0,90827.0,0.011025]
[1768168490988,0.16136593,90840.0,90827.0,0.011025]
[1768168495188,0.00981519,90839.0,90827.0,0.011025]
[1768168497294,0.00981519,90838.0,90825.0,0.011025]
[1768168499890,0.02083919,90838.0,90823.0,0.011025]
[1768168500090,0.02083919,90838.0,90825.0,0.011025]
[1768168500286,0.011024,90834.0,90822.0,0.0125634]
[1768168500493,0.02083919,90836.0,90822.0,0.09368]
[1768168500694,0.00981519,90835.0,90822.0,0.10727675]
[1768168500890,0.09718842,90835.0,90822.0,0.01359675]
[1768168501203,0.00981519,90827.0,90818.0,0.01384407]
[1768168501388,0.00981519,90827.0,90816.0,0.09368]
[1768168501696,0.00981519,90827.0,90816.0,0.10743514]
[1768168501885,0.09718842,90828.0,90816.0,0.10743514]
[1768168502083,0.00981519,90830.0,90817.0,0.011026]
[1768168502295,0.09718842,90833.0,90816.0,0.10743514]
[1768168502493,0.10700361,90833.0,90816.0,0.10743514]
[1768168502685,0.10700361,90833.0,90819.0,0.011026]
[1768168503088,0.15155074,90830.0,90819.0,0.011026]
[1768168503502,0.10700361,90833.0,90821.0,0.011026]
[1768168503695,0.15155074,90830.0,90818.0,0.011026]
[1768168503903,0.10700361,90833.0,90818.0,0.011026]
[1768168505300,0.011025,90830.0,90816.0,0.01375514]
[1768168505494,0.09454651,90836.0,90815.0,0.09747639]
[1768168505687,0.09368,90846.0,90815.0,0.11119677]
[1768168505688,0.00939603,90839.0,90815.0,0.11119677]
[1768168505891,0.00939603,90839.0,90823.0,0.011025]
[1768168506093,0.00939603,90837.0,90823.0,0.011025]
[1768168508996,0.00939603,90837.0,90817.0,0.09747639]
[1768168509200,0.00942934,90833.0,90815.0,0.01372038]
[1768168509394,0.00942934,90831.0,90818.0,0.011026]
[1768168511304,0.00942934,90830.0,90818.0,0.011026]
[1768168512314,0.09601913,90837.0,90826.0,0.011025]
[1768168512506,0.00942934,90842.0,90827.0,0.15155074]
[1768168512802,0.18969913,90846.0,90830.0,0.011024]
[1768168513209,0.011023,90843.0,90829.0,0.011025]
[1768168513399,0.10704213,90843.0,90829.0,0.011025]
[1768168513599,0.10704213,90843.0,90826.0,0.011025]
[1768168514107,0.09601913,90843.0,90820.0,0.30314281]
[1768168514301,0.09601913,90843.0,90821.0,0.11030478]
[1768168514497,0.09601913,90843.0,90833.0,0.011024]
[1768168515007,0.09601913,90843.0,90830.0,0.15155074]
[1768168515197,0.00942934,90844.0,90830.0,0.15155074]
[1768168515393,0.00942934,90844.0,90833.0,0.011024]
[1768168515600,0.09368,90846.0,90836.0,0.011024]
[1768168516003,0.10310934,90846.0,90836.0,0.011024]
[1768168516399,0.00942934,90845.0,90833.0,0.011024]
[1768168519111,0.00942934,90845.0,90835.0,0.011024]
[1768168521914,0.00942934,90845.0,90832.0,0.011024]
[1768168522313,0.02045234,90845.0,90832.0,0.011024]
[1768168523909,0.00942934,90844.0,90832.0,0.011024]
[1768168524516,0.00942934,90844.0,90830.0,0.011024]
[1768168525117,0.02045234,90844.0,90830.0,0.011024]
[1768168526022,0.011023,90843.0,90830.0,0.011024]
[1768168526611,0.011023,90843.0,90831.0,0.011024]
[1768168526910,0.00942934,90844.0,90832.0,0.011024]
[1768168527321,0.02045234,90844.0,90832.0,0.011024]
[1768168527713,0.02045234,90844.0,90830.0,0.011024]
[1768168527914,0.011023,90843.0,90830.0,0.011024]
[1768168528514,0.011023,90843.0,90831.0,0.011024]
[1768168528921,0.011023,90842.0,90831.0,0.011024]
[1768168530121,0.011023,90842.0,90829.0,0.011025]
[1768168530317,0.00942934,90844.0,90825.0,0.09927878]
[1768168530517,0.011023,90840.0,90825.0,0.09927878]
[1768168531421,0.011023,90840.0,90828.0,0.011025]
[1768168531622,0.011024,90839.0,90825.0,0.11030378]
[1768168531823,0.00942934,90843.0,90825.0,0.11030378]
[1768168532222,0.00942934,90841.0,90823.0,0.104705]
[1768168532420,0.011024,90835.0,90823.0,0.104705]
[1768168533222,0.011024,90837.0,90823.0,0.104705]
[1768168534223,0.02045234,90840.0,90823.0,0.104705]
[1768168534421,0.00968027,90839.0,90824.0,0.011025]
[1768168535926,0.00968027,90839.0,90825.0,0.011025]
[1768168537120,0.00968027,90839.0,90827.0,0.011025]
[1768168538327,0.00968027,90839.0,90828.0,0.011025]
[1768168539424,0.00968027,90839.0,90829.0,0.011025]
[1768168539931,0.09226608,90840.0,90829.0,0.011025]
[1768168544031,0.09226608,90840.0,90830.0,0.011024]
[1768168544831,0.10194635,90840.0,90830.0,0.011024]
[1768168545028,0.10194635,90839.0,90823.0,0.09368]
[1768168545227,0.00968027,90836.0,90830.0,0.011024]
[1768168545935,0.09226608,90837.0,90830.0,0.011024]
[1768168549337,0.09226608,90834.0,90821.0,0.104706]
[1768168549543,0.09226608,90834.0,90822.0,0.011025]
[1768168549829,0.10194635,90834.0,90822.0,0.011025]
[1768168553433,0.09226608,90834.0,90825.0,0.011025]
[1768168554430,0.00968027,90837.0,90825.0,0.011025]
[1768168554732,0.00968027,90837.0,90821.0,0.09368]
[1768168555337,0.00968027,90833.0,90821.0,0.104706]
[1768168556234,0.00968027,90833.0,90822.0,0.011025]
[1768168556733,0.09226608,90827.0,90815.0,0.11252119]
[1768168556926,0.00968027,90825.0,90816.0,0.104706]
[1768168557327,0.00968027,90825.0,90816.0,0.011026]
[1768168557832,0.00968027,90825.0,90818.0,0.011026]
[1768168559236,0.00968027,90825.0,90815.0,0.0252284]
[1768168560042,0.00968027,90825.0,90817.0,0.011026]
[1768168560824,0.00968027,90825.0,90815.0,0.0142024]
[1768168561031,0.00968027,90825.0,90812.0,0.09368]
[1768168561531,0.00968027,90825.0,90812.0,0.10883406]
[1768168562542,0.00968027,90825.0,90818.0,0.011026]
[1768168564345,0.09908684,90824.0,90815.0,0.011026]
[1768168564538,0.09908684,90824.0,90816.0,0.011026]
[1768168568440,0.09908684,90824.0,90817.0,0.011026]
[1768168568845,0.09908684,90824.0,90814.0,0.011026]
[1768168569449,0.09908684,90824.0,90812.0,0.10883406]
[1768168570444,0.09908684,90824.0,90812.0,0.11986106]
[1768168571248,0.09908684,90824.0,90814.0,0.011026]
[1768168571451,0.00945507,90823.0,90814.0,0.011026]
[1768168572444,0.09908684,90824.0,90814.0,0.011026]
[1768168572648,0.09908684,90824.0,90815.0,0.011026]
[1768168572855,0.09908684,90824.0,90817.0,0.011026]
[1768168573255,0.00945507,90827.0,90812.0,0.01515406]
[1768168573456,0.00945507,90827.0,90817.0,0.011026]
[1768168575759,0.00945507,90827.0,90815.0,0.011026]
[1768168576059,0.00945507,90826.0,90816.0,0.011026]
[1768168578052,0.00945507,90826.0,90817.0,0.011026]
[1768168579457,0.00945507,90825.0,90817.0,0.011026]
[1768168579655,0.09263628,90826.0,90817.0,0.011026]
[1768168579955,0.00945507,90816.0,90812.0,0.01527426]
[1768168580160,0.104704,90836.0,90812.0,0.011027]
[1768168580458,0.011025,90827.0,90812.0,0.011027]
[1768168582064,0.00945507,90825.0,90812.0,0.02635708]
[1768168582370,0.00945507,90822.0,90812.0,0.02635708]
[1768168584266,0.00945507,90822.0,90812.0,0.01533008]
[1768168584463,0.00945507,90822.0,90809.0,0.011027]
[1768168585864,0.011026,90821.0,90809.0,0.011027]
[1768168586070,0.011026,90821.0,90809.0,0.02617905]
[1768168586267,0.02048107,90821.0,90809.0,0.02617905]
[1768168590468,0.00945507,90816.0,90809.0,0.01515205]
[1768168590674,0.00945507,90815.0,90803.0,0.011028]
[1768168591074,0.011026,90816.0,90803.0,0.011028]
[1768168591277,0.011026,90819.0,90805.0,0.011028]
[1768168591575,0.02048107,90819.0,90805.0,0.011028]
[1768168592473,0.011026,90817.0,90803.0,0.01534818]
[1768168592675,0.011026,90817.0,90802.0,0.01116173]
[1768168594474,0.011026,90817.0,90802.0,0.0261017]
[1768168594675,0.02044423,90817.0,90802.0,0.0261017]
[1768168595279,0.00941823,90816.0,90802.0,0.0261017]
[1768168595572,0.00941823,90810.0,90802.0,0.0150737]
[1768168595875,0.00941823,90810.0,90798.0,0.00242297]
[1768168596076,0.00941823,90810.0,90798.0,0.01745347]
[1768168596378,0.011027,90812.0,90798.0,0.01745347]
[1768168596767,0.00011837,90811.0,90798.0,0.01745347]
[1768168597171,0.00011837,90811.0,90799.0,0.011028]
[1768168598277,0.00011837,90811.0,90800.0,0.151608]
[1768168598479,0.011027,90810.0,90800.0,0.151608]
[1768168598876,0.011027,90810.0,90798.0,0.01745347]
[1768168600077,0.00011837,90811.0,90798.0,0.01745347]
[1768168601581,0.00011837,90811.0,90799.0,0.011028]
[1768168609584,0.00011837,90811.0,90800.0,0.011028]
[1768168609790,0.00011837,90811.0,90801.0,0.011028]
[1768168612090,0.00011837,90811.0,90798.0,0.12623106]
[1768168612293,0.00011837,90811.0,90800.0,0.162636]
[1768168612690,0.00011837,90811.0,90802.0,0.011028]
[1768168613194,0.00011837,90811.0,90800.0,0.151608]
[1768168613394,0.00011837,90811.0,90801.0,0.011028]
[1768168615091,0.00011837,90811.0,90800.0,0.151608]
[1768168616397,0.00011837,90811.0,90800.0,0.162636]
[1768168616896,0.00011837,90811.0,90801.0,0.011028]
[1768168617092,0.00011837,90811.0,90803.0,0.011028]
[1768168617291,0.011026,90817.0,90803.0,0.011028]
[1768168618899,0.011026,90817.0,90805.0,0.011028]
[1768168619400,0.16102623,90820.0,90805.0,0.011028]
[1768168620697,0.011024,90834.0,90818.0,0.011026]
[1768168620890,0.09372,90833.0,90820.0,0.011026]
[1768168621096,0.09372,90841.0,90824.0,0.09774959]
[1768168621295,0.09372,90841.0,90826.0,0.09774959]
[1768168621596,0.104742,90849.0,90831.0,0.09774959]
[1768168621803,0.011023,90846.0,90831.0,0.09774959]
[1768168624402,0.011023,90844.0,90831.0,0.09774959]
[1768168624997,0.011023,90842.0,90831.0,0.09774959]
[1768168634010,0.011023,90846.0,90831.0,0.09774959]
[1768168635514,0.011022,90848.0,90831.0,0.10877359]
[1768168636101,0.011023,90846.0,90831.0,0.10877359]
[1768168640214,0.011023,90846.0,90833.0,0.09490405]
[1768168643819,0.011023,90844.0,90833.0,0.09490405]
[1768168648924,0.011023,90845.0,90833.0,0.09490405]
[1768168651432,0.011022,90853.0,90840.0,0.10592705]
[1768168651613,0.011022,90853.0,90840.0,0.09490405]
[1768168652014,0.104701,90855.0,90840.0,0.09490405]
[1768168652431,0.011022,90854.0,90840.0,0.09490405]
[1768168654238,0.011021,90857.0,90840.0,0.09490405]
[1768168655432,0.011021,90857.0,90840.0,0.10592705]
[1768168655930,0.011022,90855.0,90840.0,0.09490405]
[1768168656334,0.01226861,90858.0,90840.0,0.09490405]
[1768168658433,0.011022,90853.0,90840.0,0.09490405]
[1768168659632,0.10763668,90851.0,90836.0,0.09368]
[1768168659831,0.011022,90848.0,90836.0,0.09368]
[1768168661238,0.011023,90846.0,90831.0,0.09868733]
[1768168661540,0.011023,90846.0,90831.0,0.19236733]
[1768168662137,0.10763668,90852.0,90831.0,0.19236733]
[1768168662330,0.00984724,90848.0,90831.0,0.09368]
[1768168662731,0.09778944,90849.0,90831.0,0.09368]
[1768168662926,0.00984724,90848.0,90831.0,0.09368]
[1768168663135,0.09368,90852.0,90826.0,0.09868733]
[1768168663136,0.011023,90841.0,90826.0,0.09868733]
[1768168663337,0.011023,90839.0,90826.0,0.09868733]
[1768168663532,0.011024,90837.0,90826.0,0.09868733]
[1768168664742,0.011024,90835.0,90817.0,0.09868733]
[1768168664939,0.00984724,90838.0,90817.0,0.09868733]
[1768168665140,0.011025,90828.0,90813.0,0.09868733]
[1768168666231,0.011024,90831.0,90814.0,0.10971333]
[1768168670846,0.00984724,90835.0,90814.0,0.09868733]
[1768168671048,0.011024,90834.0,90816.0,0.011026]
[1768168671242,0.00984724,90835.0,90816.0,0.011026]
[1768168671243,0.011024,90832.0,90816.0,0.011026]
[1768168672049,0.011025,90830.0,90814.0,0.09868733]
[1768168672450,0.011025,90830.0,90815.0,0.011026]
[1768168673349,0.011024,90833.0,90817.0,0.011026]
[1768168673552,0.011024,90831.0,90814.0,0.10971333]
[1768168679961,0.011025,90829.0,90814.0,0.10971333]
[1768168680753,0.011025,90827.0,90814.0,0.09868733]
[1768168681057,0.00984724,90835.0,90814.0,0.09868733]
[1768168681257,0.011025,90826.0,90814.0,0.09868733]
[1768168682160,0.011025,90825.0,90814.0,0.09868733]
[1768168683057,0.011025,90824.0,90814.0,0.09868733]
[1768168683461,0.00984724,90830.0,90809.0,0.011027]
[1768168683756,0.10352724,90830.0,90809.0,0.011027]
[1768168684561,0.011025,90823.0,90809.0,0.011027]
[1768168685465,0.011025,90826.0,90811.0,0.011027]
[1768168686160,0.011025,90826.0,90812.0,0.011027]
[1768168686663,0.011025,90828.0,90812.0,0.011027]
[1768168687365,0.011025,90828.0,90809.0,0.09909578]
[1768168687366,0.011025,90828.0,90813.0,0.011026]
[1768168687763,0.09368,90830.0,90810.0,0.011027]
[1768168688065,0.011025,90826.0,90812.0,0.011027]
[1768168689267,0.011025,90826.0,90810.0,0.09110099]
[1768168690666,0.011025,90826.0,90811.0,0.011027]
[1768168692077,0.011025,90826.0,90812.0,0.011027]
[1768168692778,0.09368,90830.0,90810.0,0.09110099]
[1768168692979,0.011025,90824.0,90810.0,0.09110099]
[1768168693179,0.011025,90824.0,90810.0,0.10212799]
[1768168695187,0.011025,90826.0,90810.0,0.10212799]
[1768168695485,0.1027905,90830.0,90810.0,0.10212799]
[1768168695687,0.0091105,90823.0,90806.0,0.011027]
[1768168695984,0.09165995,90824.0,90806.0,0.011027]
[1768168696387,0.011026,90821.0,90806.0,0.011027]
[1768168696576,0.011026,90820.0,90804.0,0.09110099]
[1768168696782,0.0091105,90820.0,90800.0,0.05299168]
[1768168696982,0.011026,90818.0,90802.0,0.011028]
[1768168697384,0.0091105,90820.0,90800.0,0.05299168]
[1768168697385,0.011026,90816.0,90800.0,0.05299168]
[1768168697585,0.011026,90816.0,90799.0,0.10212899]
[1768168697782,0.011027,90813.0,90799.0,0.10212899]
[1768168697981,0.011027,90813.0,90798.0,0.01745347]
[1768168700177,0.011026,90816.0,90798.0,0.01745347]
[1768168701989,0.011026,90816.0,90799.0,0.011028]
[1768168702186,0.0201365,90816.0,90799.0,0.011028]
[1768168702582,0.011027,90814.0,90798.0,0.01745347]
[1768168703289,0.011027,90814.0,90798.0,0.02848147]
[1768168703788,0.0091105,90816.0,90798.0,0.02848147]
[1768168704390,0.011026,90815.0,90798.0,0.02848147]
[1768168705183,0.011027,90813.0,90798.0,0.01745347]
[1768168705383,0.0201365,90816.0,90798.0,0.01745347]
[1768168707093,0.011027,90813.0,90798.0,0.01745347]
[1768168707491,0.011027,90812.0,90798.0,0.01745347]
[1768168709896,0.011026,90815.0,90798.0,0.02848147]
[1768168710098,0.011027,90813.0,90798.0,0.02848147]
[1768168710800,0.011026,90815.0,90799.0,0.011028]
[1768168711999,0.011026,90815.0,90800.0,0.15163419]
[1768168713200,0.10077045,90816.0,90804.0,0.011028]
[1768168713403,0.104706,90819.0,90804.0,0.011028]
[1768168715491,0.104706,90819.0,90805.0,0.011027]
[1768168716703,0.011026,90816.0,90801.0,0.09784872]
[1768168719300,0.02088369,90816.0,90800.0,0.16266219]
[1768168719500,0.11133416,90816.0,90800.0,0.16266219]
[1768168719699,0.011026,90815.0,90800.0,0.16266219]
[1768168719900,0.011027,90813.0,90800.0,0.16266219]
[1768168721005,0.011027,90813.0,90800.0,0.15163419]
[1768168721208,0.011027,90813.0,90800.0,0.16266219]
[1768168721706,0.011026,90815.0,90800.0,0.16266219]
[1768168725408,0.10353769,90819.0,90800.0,0.15163419]
[1768168725596,0.10353769,90819.0,90798.0,0.01745347]
[1768168725803,0.011027,90813.0,90800.0,0.15163419]
[1768168726807,0.011026,90815.0,90800.0,0.15163419]
[1768168727408,0.011027,90814.0,90800.0,0.15163419]
[1768168727910,0.011027,90814.0,90800.0,0.16266219]
[1768168728207,0.011026,90816.0,90800.0,0.16266219]
[1768168729209,0.10353769,90819.0,90800.0,0.16266219]
[1768168730509,0.011026,90816.0,90800.0,0.16266219]
[1768168733510,0.011026,90816.0,90801.0,0.011028]
[1768168734608,0.011026,90815.0,90801.0,0.011028]
[1768168735511,0.011026,90817.0,90801.0,0.011028]
[1768168735810,0.011026,90817.0,90802.0,0.011028]
[1768168738216,0.011026,90817.0,90803.0,0.011028]
[1768168738417,0.104706,90819.0,90803.0,0.011028]
[1768168739717,0.09368,90819.0,90801.0,0.09784872]
[1768168740119,0.10353769,90819.0,90801.0,0.09784872]
[1768168741416,0.011026,90818.0,90802.0,0.011028]
[1768168741818,0.011026,90818.0,90803.0,0.011028]
[1768168742314,0.09372,90817.0,90803.0,0.011028]
[1768168744923,0.011026,90816.0,90801.0,0.09784872]
[1768168745222,0.011026,90816.0,90801.0,0.10887672]
[1768168745821,0.09372,90817.0,90801.0,0.10887672]
[1768168746022,0.104746,90817.0,90802.0,0.011028]
[1768168746419,0.011026,90815.0,90801.0,0.09784872]
[1768168746823,0.104746,90817.0,90802.0,0.011028]
[1768168747825,0.09372,90817.0,90801.0,0.09784872]
[1768168748026,0.09372,90817.0,90800.0,0.16266219]
[1768168748324,0.011026,90816.0,90800.0,0.16266219]
[1768168749024,0.09372,90817.0,90800.0,0.16266219]
[1768168750725,0.104746,90817.0,90800.0,0.16266219]
[1768168751430,0.104746,90817.0,90800.0,0.15163419]
[1768168755530,0.104746,90817.0,90801.0,0.011028]
[1768168758931,0.011026,90816.0,90800.0,0.15163419]
[1768168759230,0.011026,90816.0,90800.0,0.16266219]
[1768168760931,0.09372,90817.0,90802.0,0.011028]
[1768168762438,0.011026,90816.0,90802.0,0.011028]
[1768168763645,0.011026,90816.0,90800.0,0.15163419]
[1768168763947,0.011026,90814.0,90799.0,0.011028]
[1768168764140,0.011026,90814.0,90800.0,0.15163419]
[1768168765439,0.011026,90814.0,90799.0,0.011028]
[1768168766141,0.011026,90815.0,90800.0,0.011028]
[1768168768248,0.02025485,90814.0,90798.0,0.02848147]
[1768168768648,0.011027,90812.0,90798.0,0.01745347]
[1768168769148,0.02025385,90814.0,90798.0,0.01745347]
[1768168769349,0.02025385,90814.0,90798.0,0.02848147]
[1768168774854,0.011027,90812.0,90798.0,0.01745347]
[1768168778255,0.02025385,90814.0,90798.0,0.02848147]
[1768168779855,0.011027,90813.0,90798.0,0.02848147]
[1768168780859,0.02071927,90805.0,90798.0,0.01745347]
[1768168781351,0.09953282,90806.0,90790.0,0.011029]
[1768168782447,0.011028,90805.0,90790.0,0.011029]
[1768168782649,0.011028,90803.0,90790.0,0.01580666]
[1768168782849,0.00969127,90802.0,90788.0,0.011029]
[1768168783049,0.00969127,90802.0,90788.0,0.01579102]
[1768168783350,0.00969127,90802.0,90786.0,0.01103]
[1768168784148,0.00969127,90802.0,90787.0,0.01103]
[1768168785063,0.00969127,90801.0,90787.0,0.01103]
[1768168785259,0.00969127,90801.0,90789.0,0.011029]
[1768168785862,0.09953282,90802.0,90789.0,0.011029]
[1768168786462,0.09953282,90802.0,90791.0,0.011029]
[1768168788664,0.00969127,90799.0,90788.0,0.011029]
[1768168788963,0.00969127,90798.0,90787.0,0.01531235]
[1768168789263,0.09953282,90799.0,90780.0,0.09774869]
[1768168790461,0.11056082,90799.0,90785.0,0.01103]
[1768168790863,0.09953282,90799.0,90785.0,0.01103]
[1768168791266,0.09953282,90799.0,90785.0,0.02703687]
[1768168791657,0.09953282,90799.0,90787.0,0.01103]
[1768168792063,0.09953282,90799.0,90788.0,0.011029]
[1768168792264,0.09953282,90799.0,90789.0,0.011029]
[1768168793664,0.011028,90798.0,90786.0,0.01103]
[1768168794260,0.02071927,90798.0,90786.0,0.01103]
[1768168794564,0.00969127,90798.0,90786.0,0.01103]
[1768168795365,0.00969127,90798.0,90787.0,0.01103]
[1768168796667,0.09953282,90799.0,90787.0,0.01103]
[1768168797364,0.09953282,90799.0,90788.0,0.011029]
[1768168800470,0.10922409,90799.0,90785.0,0.01600687]
[1768168800661,0.10922409,90799.0,90780.0,0.09774869]
[1768168801171,0.00969127,90798.0,90780.0,0.09774869]
[1768168801374,0.00969127,90793.0,90781.0,0.01103]
[1768168801666,0.02072027,90791.0,90780.0,0.01480407]
[1768168801862,0.00969127,90791.0,90777.0,0.104751]
[1768168802061,0.00969127,90791.0,90777.0,0.011031]
[1768168802365,0.00969127,90784.0,90777.0,0.01449035]
[1768168802565,0.00969127,90783.0,90773.0,0.011031]
[1768168802769,0.09953282,90784.0,90773.0,0.011031]
[1768168802966,0.09953282,90784.0,90774.0,0.011031]
[1768168803359,0.09953282,90784.0,90774.0,0.01497606]
[1768168803556,0.09372,90791.0,90772.0,0.011032]
[1768168803557,0.10922409,90781.0,90772.0,0.011032]
[1768168803766,0.00969127,90780.0,90774.0,0.011031]
[1768168803966,0.09953282,90781.0,90774.0,0.011031]
[1768168804166,0.00957414,90783.0,90774.0,0.011031]
[1768168804373,0.00957414,90783.0,90773.0,0.011031]
[1768168804761,0.10351085,90787.0,90774.0,0.011031]
[1768168804966,0.10351085,90787.0,90773.0,0.01466697]
[1768168805166,0.10351085,90787.0,90764.0,0.011033]
[1768168805875,0.10351085,90787.0,90776.0,0.011031]